fUST/lending_fUST_20260501
["ID","MTS","AMOUNT","RATE_DAILY","PERIOD"]
[421435274,1777648232000,-1349.64553418,0.00011782,2]
[421435273,1777648232000,-407.50913423,0.00011782,2]
[421435269,1777648232000,-438.05624803,0.00011547,2]
[421435271,1777648232000,-1421.2607696,0.00011664,2]
[421435272,1777648232000,-3337.34184545,0.00011664,2]
[421435270,1777648232000,-241.39738495,0.00011664,2]
[421435307,1777648238000,-500.0,0.00014172,2]
[421435306,1777648238000,-2351.33106258,0.00014098,2]
[421435304,1777648238000,-1000.0,0.00013699,2]
[421435305,1777648238000,-198.03150539,0.00013961,2]
[421435302,1777648238000,-200.0,0.0001309,2]
[421435289,1777648238000,-167.82330965,0.00011961,2]
[421435290,1777648238000,-266.83497914,0.00012982,2]
[421435291,1777648238000,-484.042256,0.00012982,2]
[421435288,1777648238000,-3242.84533159,0.00011782,2]
[421435308,1777648238000,-500.0,0.00014172,2]
[421435301,1777648238000,-14249.12276486,0.00012982,2]
[421435310,1777648238000,-515.84,0.00014172,2]
[421435303,1777648238000,-156.0,0.00013699,2]
[421435315,1777648238000,-7279.32737383,0.00014475,2]
[421435321,1777648238000,-14619.4512786,0.00015475,2]
[421435319,1777648238000,-321.774,0.00015133,2]
[421435317,1777648238000,-2353.85425525,0.0001484,2]
[421435322,1777648238000,-3400.90312434,0.00015475,2]
[421435318,1777648238000,-500.0,0.00015132,2]
[421435320,1777648238000,-500.0,0.00015474,2]
[421435316,1777648238000,-7321.18354987,0.00014575,2]
[421435312,1777648238000,-2983.23835013,0.00014175,2]
[421435313,1777648238000,-5918.05643339,0.00014275,2]
[421435311,1777648238000,-222.03307881,0.00014172,2]
[421435314,1777648238000,-6619.61999159,0.00014375,2]
[421435309,1777648238000,-531.33142443,0.00014172,2]
[421435354,1777648247000,-78427.5539392,0.0001644,5]
[421435353,1777648247000,-228.23970112,0.00015961,2]
[421435352,1777648247000,-19496.91085277,0.00015475,2]
[421435351,1777648247000,-528.79904169,0.00015475,2]
[421435372,1777648248000,-260.86230765,0.0001644,5]
[421435406,1777649304000,200.883375,0.00021808,120]
[421435423,1777649431000,-876.86326639,0.00012142,2]
[421435425,1777649431000,-5000.0,0.00012265,2]
[421435426,1777649431000,-1316.86033067,0.00013393,2]
[421435424,1777649431000,-161.46559347,0.00012203,2]
[421435433,1777649432000,-876.86326639,0.00015035,2]
[421435431,1777649432000,-4840.73507328,0.0001484,2]
[421435429,1777649432000,-538.39785044,0.0001484,2]
[421435428,1777649432000,-190.5294003,0.00014204,2]
[421435430,1777649432000,-2153.59140175,0.0001484,2]
[421435432,1777649432000,-1499.733021,0.00015035,2]
[421435427,1777649432000,-1000.0,0.00013699,2]
[421435469,1777649438000,-1277.90910458,0.00015035,2]
[421435513,1777649440000,-384.033501,0.00014885,2]
[421435548,1777649442000,-920.38129747,0.00014885,2]
[421435550,1777649443000,-620.51122382,0.00014885,2]
[421435549,1777649443000,-695.7,0.00014885,2]
[421435556,1777649446000,-585.22942909,0.00014885,2]
[421435557,1777649446000,-1293.33118981,0.00014885,2]
[421435560,1777649446000,-263.55109567,0.00015521,2]
[421435566,1777649446000,-3951.20714338,0.00015621,2]
[421435558,1777649446000,-500.81335881,0.00014885,2]
[421435559,1777649446000,-6707.62366683,0.00015035,2]
[421435561,1777649446000,-3134.4537068,0.00015535,2]
[421435564,1777649446000,-1422.43457162,0.00015621,2]
[421435563,1777649446000,-632.19314294,0.00015621,2]
[421435565,1777649446000,-2528.77257176,0.00015621,2]
[421435567,1777649446000,-1558.51629318,0.00015621,2]
[421435562,1777649446000,-158.04828574,0.00015621,2]
[421435568,1777649451000,3610.45211619,0.0001,2]
[421435569,1777649607000,200.883375,0.00021808,120]
[421435570,1777649619000,483.92,0.00021918,120]
[421435572,1777649689000,3167.0,0.00021918,120]
[421435588,1777649872000,4971.0,0.00021917,120]
[421435590,1777649910000,200.883375,0.00021808,120]
[421435602,1777650213000,200.883375,0.00021808,120]
[421435603,1777650220000,157.0,7.17e-05,2]
[421435604,1777650229000,5000.0,8.01e-05,2]
[421435605,1777650251000,5000.0,8.01e-05,2]
[421435606,1777650262000,661.26,8.01e-05,2]
[421435607,1777650273000,5000.0,8.01e-05,2]
[421435610,1777650296000,5000.0,8.01e-05,2]
[421435611,1777650317000,5000.0,8.01e-05,2]
[421435612,1777650339000,5000.0,8.01e-05,2]
[421435613,1777650362000,987.54128056,8.01e-05,2]
[421435614,1777650407000,275.25294366,0.00021918,120]
[421435617,1777650477000,151.0,7.925e-05,2]
[421435618,1777650516000,200.883375,0.00021808,120]
[421435634,1777650631000,-157.0,8.17e-05,2]
[421435636,1777650631000,-151.0,8.823e-05,2]
[421435637,1777650631000,-157.0,9.17e-05,2]
[421435638,1777650631000,-1667.90808308,9.425e-05,2]
[421435635,1777650631000,-3105.0,8.6e-05,2]
[421435696,1777650638000,-2153.59140175,0.00012087,2]
[421435685,1777650638000,-12512.1987194,0.0001,2]
[421435690,1777650638000,-1316.86033067,0.00010908,2]
[421435692,1777650638000,-151.0,0.00010982,2]
[421435688,1777650638000,-174.93804018,0.0001017,2]
[421435689,1777650638000,-720.0,0.00010784,2]
[421435687,1777650638000,-246.45723113,0.00010152,2]
[421435695,1777650638000,-538.39785044,0.00012087,2]
[421435693,1777650638000,-151.0,0.00011029,2]
[421435694,1777650638000,-864.0,0.00011862,2]
[421435697,1777650638000,-284.05240198,0.00012152,2]
[421435698,1777650638000,-158.04828574,0.00012723,2]
[421435699,1777650638000,-7744.36600102,0.00012723,2]
[421435701,1777650638000,-415.5519409,0.00012723,2]
[421435700,1777650638000,-10104.97519676,0.00012723,2]
[421435702,1777650638000,-1660.54555585,0.00012723,2]
[421435705,1777650638000,-539.91346327,0.000129,2]
[421435691,1777650638000,-151.0,0.00010927,2]
[421435686,1777650638000,-6302.7925178,0.0001,2]
[421435669,1777650638000,-300.0,9.612e-05,2]
[421435678,1777650638000,-300.0,9.612e-05,2]
[421435665,1777650638000,-5818.31215015,9.425e-05,2]
[421435666,1777650638000,-4913.88862051,9.425e-05,2]
[421435667,1777650638000,-300.0,9.612e-05,2]
[421435668,1777650638000,-300.0,9.612e-05,2]
[421435672,1777650638000,-300.0,9.612e-05,2]
[421435670,1777650638000,-300.0,9.612e-05,2]
[421435671,1777650638000,-300.0,9.612e-05,2]
[421435674,1777650638000,-300.0,9.612e-05,2]
[421435681,1777650638000,-300.0,9.612e-05,2]
[421435682,1777650638000,-2707.5715113,9.612e-05,2]
[421435673,1777650638000,-300.0,9.612e-05,2]
[421435683,1777650638000,-600.0,9.803e-05,2]
[421435675,1777650638000,-300.0,9.612e-05,2]
[421435684,1777650638000,-7017.84916441,0.0001,2]
[421435676,1777650638000,-300.0,9.612e-05,2]
[421435677,1777650638000,-300.0,9.612e-05,2]
[421435679,1777650638000,-300.0,9.612e-05,2]
[421435680,1777650638000,-300.0,9.612e-05,2]
[421435711,1777650638000,-2525.80164758,0.00013393,2]
[421435712,1777650638000,-4490.31404014,0.00013393,2]
[421435731,1777650638000,-500.0,0.00013823,2]
[421435704,1777650638000,-539.91346327,0.000129,2]
[421435730,1777650638000,-582.69983584,0.00013823,2]
[421435727,1777650638000,-500.0,0.00013823,2]
[421435733,1777650638000,-500.0,0.00013823,2]
[421435734,1777650638000,-500.0,0.00013823,2]
[421435732,1777650638000,-500.0,0.00013823,2]
[421435736,1777650638000,-500.0,0.00013823,2]
[421435735,1777650638000,-500.0,0.00013823,2]
[421435739,1777650638000,-500.0,0.00013824,2]
[421435745,1777650638000,-500.0,0.00013824,2]
[421435738,1777650638000,-151.5,0.00013824,2]
[421435746,1777650638000,-563.19269908,0.00013824,2]
[421435740,1777650638000,-151.5,0.00013824,2]
[421435741,1777650638000,-500.0,0.00013824,2]
[421435743,1777650638000,-500.0,0.00013824,2]
[421435742,1777650638000,-202.25720741,0.00013824,2]
[421435744,1777650638000,-500.0,0.00013824,2]
[421435703,1777650638000,-539.91346327,0.000129,2]
[421435729,1777650638000,-302.94089139,0.00013823,2]
[421435728,1777650638000,-500.0,0.00013823,2]
[421435747,1777650638000,-500.0,0.00013824,2]
[421435726,1777650638000,-500.0,0.00013823,2]
[421435706,1777650638000,-1000.0,0.00013048,2]
[421435737,1777650638000,-500.0,0.00013823,2]
[421435707,1777650638000,-212.0365316,0.00013233,14]
[421435710,1777650638000,-1122.57851003,0.00013393,2]
[421435709,1777650638000,-280.64462751,0.00013393,2]
[421435714,1777650638000,-500.0,0.00013667,2]
[421435713,1777650638000,-7009.09957203,0.00013393,2]
[421435723,1777650638000,-306.31928871,0.00013823,2]
[421435718,1777650638000,-1000.0,0.00013699,2]
[421435708,1777650638000,-500.0,0.00013393,2]
[421435725,1777650638000,-500.0,0.00013823,2]
[421435724,1777650638000,-500.0,0.00013823,2]
[421435715,1777650638000,-2298.31,0.00013698,2]
[421435719,1777650638000,-1000.0,0.00013699,2]
[421435717,1777650638000,-831.4745667,0.00013699,2]
[421435720,1777650638000,-500.0,0.00013823,2]
[421435721,1777650638000,-500.0,0.00013823,2]
[421435716,1777650638000,-2298.31,0.00013698,2]
[421435722,1777650638000,-500.0,0.00013823,2]
[421435798,1777650639000,-4000.0,0.000159,2]
[421435796,1777650639000,-176.08734598,0.00015877,2]
[421435793,1777650639000,-2298.31,0.0001562,2]
[421435794,1777650639000,-1000.0,0.00015788,2]
[421435786,1777650639000,-255.03237857,0.00015342,2]
[421435781,1777650639000,-2298.31,0.00015297,2]
[421435782,1777650639000,-17212.3747918,0.00015298,2]
[421435780,1777650639000,-401.110307,0.00015068,2]
[421435779,1777650639000,-500.0,0.00015034,2]
[421435797,1777650639000,-2298.31,0.00015898,2]
[421435785,1777650639000,-692.5990085,0.00015298,2]
[421435778,1777650639000,-500.0,0.00015034,2]
[421435795,1777650639000,-492.0,0.00015788,2]
[421435802,1777650639000,-151.0,0.00016438,2]
[421435788,1777650639000,-539.91346327,0.00015614,2]
[421435791,1777650639000,-500.0,0.0001562,2]
[421435792,1777650639000,-500.0,0.0001562,2]
[421435789,1777650639000,-500.0,0.0001562,2]
[421435800,1777650639000,-359.24274368,0.00016152,2]
[421435808,1777650639000,-151.0,0.00016438,2]
[421435799,1777650639000,-5000.0,0.0001606,2]
[421435807,1777650639000,-151.0,0.00016438,2]
[421435801,1777650639000,-1574.984356,0.00016266,2]
[421435803,1777650639000,-151.0,0.00016438,2]
[421435804,1777650639000,-151.0,0.00016438,2]
[421435784,1777650639000,-9806.5209497,0.00015298,2]
[421435787,1777650639000,-1460.68911748,0.00015569,2]
[421435783,1777650639000,-3104.0134066,0.00015298,2]
[421435759,1777650639000,-151.5,0.00013824,2]
[421435776,1777650639000,-2298.31,0.00014839,2]
[421435748,1777650639000,-500.0,0.00013824,2]
[421435749,1777650639000,-500.0,0.00013824,2]
[421435750,1777650639000,-500.0,0.00013824,2]
[421435751,1777650639000,-500.0,0.00013824,2]
[421435752,1777650639000,-500.0,0.00013824,2]
[421435753,1777650639000,-395.94805721,0.00013824,2]
[421435754,1777650639000,-500.0,0.00013824,2]
[421435755,1777650639000,-151.5,0.00013824,2]
[421435756,1777650639000,-500.0,0.00013824,2]
[421435757,1777650639000,-151.5,0.00013824,2]
[421435806,1777650639000,-151.0,0.00016438,2]
[421435758,1777650639000,-500.0,0.00013824,2]
[421435761,1777650639000,-163.80586975,0.00013824,2]
[421435777,1777650639000,-987.61228223,0.00014872,2]
[421435760,1777650639000,-442.95890791,0.00013824,2]
[421435765,1777650639000,-469.49447973,0.00013824,2]
[421435763,1777650639000,-500.0,0.00013824,2]
[421435766,1777650639000,-500.0,0.00013941,2]
[421435764,1777650639000,-500.0,0.00013824,2]
[421435768,1777650639000,-321.64757283,0.00014152,2]
[421435767,1777650639000,-176.08734599,0.00013998,2]
[421435771,1777650639000,-500.0,0.00014215,2]
[421435772,1777650639000,-242.042,0.00014215,2]
[421435773,1777650639000,-1000.0,0.00014353,2]
[421435769,1777650639000,-514.53544698,0.00014175,2]
[421435774,1777650639000,-244.0,0.00014353,2]
[421435770,1777650639000,-539.91346327,0.00014186,2]
[421435775,1777650639000,-500.0,0.00014488,2]
[421435762,1777650639000,-500.0,0.00013824,2]
[421435809,1777650639000,-151.0,0.00016438,2]
[421435790,1777650639000,-500.0,0.0001562,2]
[421435810,1777650639000,-221.382061,0.00016438,2]
[421435841,1777650639000,-151.0,0.00016438,2]
[421435845,1777650639000,-151.0,0.00016438,2]
[421435840,1777650639000,-151.0,0.00016438,2]
[421435843,1777650639000,-157.8,0.00016438,2]
[421435844,1777650639000,-151.0,0.00016438,2]
[421435848,1777650639000,-151.0,0.00016438,2]
[421435852,1777650639000,-151.0,0.00016438,2]
[421435849,1777650639000,-151.0,0.00016438,2]
[421435850,1777650639000,-151.0,0.00016438,2]
[421435853,1777650639000,-151.0,0.00016438,2]
[421435851,1777650639000,-151.0,0.00016438,2]
[421435860,1777650639000,-170.667916,0.00016438,2]
[421435854,1777650639000,-172.157236,0.00016438,2]
[421435855,1777650639000,-170.667916,0.00016438,2]
[421435856,1777650639000,-170.667916,0.00016438,2]
[421435858,1777650639000,-170.667916,0.00016438,2]
[421435861,1777650639000,-170.667916,0.00016438,2]
[421435857,1777650639000,-170.667916,0.00016438,2]
[421435863,1777650639000,-170.667916,0.00016438,2]
[421435862,1777650639000,-170.667916,0.00016438,2]
[421435864,1777650639000,-170.667916,0.00016438,2]
[421435865,1777650639000,-170.667916,0.00016438,2]
[421435868,1777650639000,-170.667916,0.00016438,2]
[421435866,1777650639000,-170.667916,0.00016438,2]
[421435867,1777650639000,-170.667916,0.00016438,2]
[421435869,1777650639000,-170.667916,0.00016438,2]
[421435805,1777650639000,-151.0,0.00016438,2]
[421435836,1777650639000,-151.0,0.00016438,2]
[421435839,1777650639000,-151.0,0.00016438,2]
[421435859,1777650639000,-170.667916,0.00016438,2]
[421435838,1777650639000,-151.0,0.00016438,2]
[421435837,1777650639000,-151.0,0.00016438,2]
[421435813,1777650639000,-492.45,0.00016438,2]
[421435822,1777650639000,-492.45,0.00016438,2]
[421435821,1777650639000,-492.45,0.00016438,2]
[421435819,1777650639000,-492.45,0.00016438,2]
[421435820,1777650639000,-492.45,0.00016438,2]
[421435811,1777650639000,-492.45,0.00016438,2]
[421435817,1777650639000,-492.45,0.00016438,2]
[421435816,1777650639000,-492.45,0.00016438,2]
[421435815,1777650639000,-492.45,0.00016438,2]
[421435818,1777650639000,-492.45,0.00016438,2]
[421435814,1777650639000,-492.45,0.00016438,2]
[421435823,1777650639000,-492.45,0.00016438,2]
[421435825,1777650639000,-492.45,0.00016438,2]
[421435812,1777650639000,-492.45,0.00016438,2]
[421435824,1777650639000,-492.45,0.00016438,2]
[421435826,1777650639000,-492.45,0.00016438,2]
[421435846,1777650639000,-151.0,0.00016438,2]
[421435847,1777650639000,-151.0,0.00016438,2]
[421435835,1777650639000,-151.0,0.00016438,2]
[421435833,1777650639000,-151.0,0.00016438,2]
[421435834,1777650639000,-151.0,0.00016438,2]
[421435842,1777650639000,-151.0,0.00016438,2]
[421435831,1777650639000,-151.0,0.00016438,2]
[421435832,1777650639000,-151.0,0.00016438,2]
[421435830,1777650639000,-492.45,0.00016438,2]
[421435827,1777650639000,-492.45,0.00016438,2]
[421435829,1777650639000,-492.45,0.00016438,2]
[421435828,1777650639000,-492.45,0.00016438,2]
[421435912,1777650640000,-290.07490222,0.00016438,2]
[421435908,1777650640000,-290.074909,0.00016438,2]
[421435910,1777650640000,-290.074909,0.00016438,2]
[421435904,1777650640000,-290.074909,0.00016438,2]
[421435906,1777650640000,-290.074909,0.00016438,2]
[421435905,1777650640000,-3116.603392,0.00016438,2]
[421435907,1777650640000,-3116.603392,0.00016438,2]
[421435915,1777650640000,-396.803573,0.00016438,2]
[421435914,1777650640000,-3116.603395,0.00016438,2]
[421435913,1777650640000,-3116.603392,0.00016438,2]
[421435909,1777650640000,-3116.603392,0.00016438,2]
[421435903,1777650640000,-3116.603392,0.00016438,2]
[421435911,1777650640000,-3116.603392,0.00016438,2]
[421435923,1777650640000,-157.949039,0.00016438,2]
[421435916,1777650640000,-317.750015,0.00016438,2]
[421435918,1777650640000,-396.803573,0.00016438,2]
[421435922,1777650640000,-317.750015,0.00016438,2]
[421435924,1777650640000,-396.803573,0.00016438,2]
[421435919,1777650640000,-317.750015,0.00016438,2]
[421435920,1777650640000,-157.949039,0.00016438,2]
[421435926,1777650640000,-157.949039,0.00016438,2]
[421435925,1777650640000,-317.750015,0.00016438,2]
[421435927,1777650640000,-396.803573,0.00016438,2]
[421435921,1777650640000,-396.803573,0.00016438,2]
[421435929,1777650640000,-157.949039,0.00016438,2]
[421435928,1777650640000,-317.750015,0.00016438,2]
[421435896,1777650640000,-3116.603392,0.00016438,2]
[421435917,1777650640000,-396.803573,0.00016438,2]
[421435894,1777650640000,-290.074909,0.00016438,2]
[421435874,1777650640000,-170.667909,0.00016438,2]
[421435898,1777650640000,-3116.603392,0.00016438,2]
[421435873,1777650640000,-170.667916,0.00016438,2]
[421435872,1777650640000,-170.667916,0.00016438,2]
[421435871,1777650640000,-170.667916,0.00016438,2]
[421435870,1777650640000,-170.667916,0.00016438,2]
[421435875,1777650640000,-290.074909,0.00016438,2]
[421435876,1777650640000,-3116.603392,0.00016438,2]
[421435939,1777650640000,-396.803573,0.00016438,2]
[421435886,1777650640000,-290.074909,0.00016438,2]
[421435879,1777650640000,-3116.603392,0.00016438,2]
[421435877,1777650640000,-290.074909,0.00016438,2]
[421435880,1777650640000,-290.074909,0.00016438,2]
[421435885,1777650640000,-3116.603392,0.00016438,2]
[421435884,1777650640000,-290.074909,0.00016438,2]
[421435893,1777650640000,-3116.603392,0.00016438,2]
[421435888,1777650640000,-290.074909,0.00016438,2]
[421435882,1777650640000,-290.074909,0.00016438,2]
[421435887,1777650640000,-3116.603392,0.00016438,2]
[421435881,1777650640000,-3116.603392,0.00016438,2]
[421435889,1777650640000,-3116.603392,0.00016438,2]
[421435900,1777650640000,-3116.603392,0.00016438,2]
[421435901,1777650640000,-290.074909,0.00016438,2]
[421435899,1777650640000,-290.074909,0.00016438,2]
[421435902,1777650640000,-3116.603392,0.00016438,2]
[421435890,1777650640000,-290.074909,0.00016438,2]
[421435892,1777650640000,-290.074909,0.00016438,2]
[421435891,1777650640000,-3116.603392,0.00016438,2]
[421435897,1777650640000,-290.074909,0.00016438,2]
[421435895,1777650640000,-290.074909,0.00016438,2]
[421435883,1777650640000,-3116.603392,0.00016438,2]
[421435932,1777650640000,-157.949039,0.00016438,2]
[421435878,1777650640000,-290.074909,0.00016438,2]
[421435936,1777650640000,-396.803573,0.00016438,2]
[421435963,1777650640000,-157.949039,0.00016438,2]
[421435966,1777650640000,-317.750015,0.00016438,2]
[421435968,1777650640000,-396.803573,0.00016438,2]
[421435970,1777650640000,-157.949039,0.00016438,2]
[421435965,1777650640000,-396.803573,0.00016438,2]
[421435967,1777650640000,-157.949039,0.00016438,2]
[421435971,1777650640000,-396.803577,0.00016438,2]
[421435969,1777650640000,-317.750015,0.00016438,2]
[421435978,1777650640000,-151.0,0.00016438,2]
[421435977,1777650640000,-151.0,0.00016438,2]
[421435980,1777650640000,-151.0,0.00016438,2]
[421435979,1777650640000,-151.0,0.00016438,2]
[421435983,1777650640000,-151.0,0.00016438,2]
[421435974,1777650640000,-157.949039,0.00016438,2]
[421435987,1777650640000,-151.0,0.00016438,2]
[421435989,1777650640000,-151.0,0.00016438,2]
[421435984,1777650640000,-151.0,0.00016438,2]
[421435976,1777650640000,-157.949047,0.00016438,2]
[421435985,1777650640000,-151.0,0.00016438,2]
[421435981,1777650640000,-176.223497,0.00016438,2]
[421435982,1777650640000,-152.530512,0.00016438,2]
[421435988,1777650640000,-169.428478,0.00016438,2]
[421435991,1777650640000,-209.227572,0.00016438,2]
[421435992,1777650640000,-200.914393,0.00016438,2]
[421435990,1777650640000,-151.0,0.00016438,2]
[421435993,1777650640000,-200.914393,0.00016438,2]
[421435994,1777650640000,-200.914393,0.00016438,2]
[421435930,1777650640000,-396.803573,0.00016438,2]
[421435986,1777650640000,-151.0,0.00016438,2]
[421435962,1777650640000,-317.750015,0.00016438,2]
[421435995,1777650640000,-200.914393,0.00016438,2]
[421435973,1777650640000,-157.949039,0.00016438,2]
[421435975,1777650640000,-317.750011,0.00016438,2]
[421435933,1777650640000,-396.803573,0.00016438,2]
[421435940,1777650640000,-317.750015,0.00016438,2]
[421435938,1777650640000,-157.949039,0.00016438,2]
[421435937,1777650640000,-317.750015,0.00016438,2]
[421435934,1777650640000,-317.750015,0.00016438,2]
[421435935,1777650640000,-157.949039,0.00016438,2]
[421435953,1777650640000,-157.949039,0.00016438,2]
[421435952,1777650640000,-317.750015,0.00016438,2]
[421435942,1777650640000,-396.803573,0.00016438,2]
[421435945,1777650640000,-396.803573,0.00016438,2]
[421435941,1777650640000,-157.949039,0.00016438,2]
[421435944,1777650640000,-157.949039,0.00016438,2]
[421435943,1777650640000,-317.750015,0.00016438,2]
[421435931,1777650640000,-317.750015,0.00016438,2]
[421435950,1777650640000,-157.949039,0.00016438,2]
[421435951,1777650640000,-396.803573,0.00016438,2]
[421435957,1777650640000,-396.803573,0.00016438,2]
[421435958,1777650640000,-317.750015,0.00016438,2]
[421435955,1777650640000,-317.750015,0.00016438,2]
[421435959,1777650640000,-157.949039,0.00016438,2]
[421435960,1777650640000,-396.803573,0.00016438,2]
[421435972,1777650640000,-317.750015,0.00016438,2]
[421435954,1777650640000,-396.803573,0.00016438,2]
[421435947,1777650640000,-157.949039,0.00016438,2]
[421435949,1777650640000,-317.750015,0.00016438,2]
[421435946,1777650640000,-317.750015,0.00016438,2]
[421435948,1777650640000,-396.803573,0.00016438,2]
[421435956,1777650640000,-157.949039,0.00016438,2]
[421436034,1777650641000,-5000.0,0.00016438,2]
[421436043,1777650641000,-403.783843,0.00016438,2]
[421436038,1777650641000,-403.783843,0.00016438,2]
[421436035,1777650641000,-2362.49697,0.00016438,2]
[421436018,1777650641000,-200.914393,0.00016438,2]
[421436026,1777650641000,-436.560197,0.00016438,2]
[421436027,1777650641000,-436.560197,0.00016438,2]
[421436025,1777650641000,-436.560197,0.00016438,2]
[421436040,1777650641000,-403.783843,0.00016438,2]
[421436021,1777650641000,-436.560197,0.00016438,2]
[421436032,1777650641000,-5000.0,0.00016438,2]
[421436028,1777650641000,-436.560197,0.00016438,2]
[421436045,1777650641000,-403.783843,0.00016438,2]
[421436039,1777650641000,-403.783843,0.00016438,2]
[421436044,1777650641000,-403.783843,0.00016438,2]
[421436042,1777650641000,-403.783843,0.00016438,2]
[421436037,1777650641000,-403.783843,0.00016438,2]
[421436036,1777650641000,-403.783843,0.00016438,2]
[421436041,1777650641000,-403.783843,0.00016438,2]
[421436056,1777650641000,-151.0,0.00016438,2]
[421436057,1777650641000,-151.0,0.00016438,2]
[421436058,1777650641000,-151.0,0.00016438,2]
[421436055,1777650641000,-403.783839,0.00016438,2]
[421436048,1777650641000,-403.783843,0.00016438,2]
[421436020,1777650641000,-200.914393,0.00016438,2]
[421436047,1777650641000,-403.783843,0.00016438,2]
[421436033,1777650641000,-5000.0,0.00016438,2]
[421436023,1777650641000,-436.560197,0.00016438,2]
[421436015,1777650641000,-200.914393,0.00016438,2]
[421436024,1777650641000,-200.914396,0.00016438,2]
[421436059,1777650641000,-151.0,0.00016438,2]
[421436002,1777650641000,-200.914393,0.00016438,2]
[421436000,1777650641000,-200.914393,0.00016438,2]
[421435999,1777650641000,-436.560197,0.00016438,2]
[421436001,1777650641000,-436.560197,0.00016438,2]
[421435998,1777650641000,-200.914393,0.00016438,2]
[421435996,1777650641000,-200.914393,0.00016438,2]
[421435997,1777650641000,-436.560197,0.00016438,2]
[421436003,1777650641000,-436.560197,0.00016438,2]
[421436004,1777650641000,-200.914393,0.00016438,2]
[421436007,1777650641000,-436.560197,0.00016438,2]
[421436006,1777650641000,-200.914393,0.00016438,2]
[421436022,1777650641000,-200.914393,0.00016438,2]
[421436005,1777650641000,-436.560197,0.00016438,2]
[421436008,1777650641000,-200.914393,0.00016438,2]
[421436010,1777650641000,-200.914393,0.00016438,2]
[421436011,1777650641000,-436.560197,0.00016438,2]
[421436009,1777650641000,-436.560197,0.00016438,2]
[421436012,1777650641000,-200.914393,0.00016438,2]
[421436014,1777650641000,-200.914393,0.00016438,2]
[421436016,1777650641000,-436.560197,0.00016438,2]
[421436017,1777650641000,-200.914393,0.00016438,2]
[421436019,1777650641000,-436.560197,0.00016438,2]
[421436031,1777650641000,-436.560195,0.00016438,2]
[421436029,1777650641000,-436.560197,0.00016438,2]
[421436030,1777650641000,-436.560197,0.00016438,2]
[421436013,1777650641000,-436.560197,0.00016438,2]
[421436049,1777650641000,-403.783843,0.00016438,2]
[421436054,1777650641000,-403.783843,0.00016438,2]
[421436100,1777650641000,-263.482726,0.00016438,2]
[421436092,1777650641000,-263.482726,0.00016438,2]
[421436087,1777650641000,-263.482726,0.00016438,2]
[421436088,1777650641000,-263.482726,0.00016438,2]
[421436093,1777650641000,-263.482726,0.00016438,2]
[421436091,1777650641000,-263.482726,0.00016438,2]
[421436090,1777650641000,-263.482726,0.00016438,2]
[421436095,1777650641000,-263.482726,0.00016438,2]
[421436096,1777650641000,-263.482726,0.00016438,2]
[421436097,1777650641000,-263.482726,0.00016438,2]
[421436094,1777650641000,-263.482726,0.00016438,2]
[421436098,1777650641000,-263.482726,0.00016438,2]
[421436102,1777650641000,-263.482736,0.00016438,2]
[421436106,1777650641000,-223.4134936,0.00016905,2]
[421436105,1777650641000,-21328.08257178,0.000169,5]
[421436110,1777650641000,-151.0,0.00016906,2]
[421436108,1777650641000,-151.0,0.00016906,2]
[421436099,1777650641000,-263.482726,0.00016438,2]
[421436103,1777650641000,-500.0,0.00016442,2]
[421436101,1777650641000,-263.482726,0.00016438,2]
[421436107,1777650641000,-892.76032042,0.00016905,2]
[421436109,1777650641000,-151.0,0.00016906,2]